[Event "Live Chess"]
[Site "Chess.com"]
[Date "2024.06.01"]
[Round "-"]
[White "mrsmarple1968"]
[Black "Mangoalo"]
[Result "1-0"]
[WhiteElo "1803"]
[BlackElo "989"]
[TimeControl "300"]
[EndTime "9:31:09 PDT"]
[Termination "mrsmarple1968 won by checkmate"]

1. e4 {[%clk 0:04:55.6]} 1... e6 {[%clk 0:04:57.7]} 2. d4 {[%clk 0:04:52.9]}
2... d5 {[%clk 0:04:57.2]} 3. e5 {[%clk 0:04:50.8]} 3... Nd7 {[%clk 0:04:50.9]}
4. Nf3 {[%clk 0:04:48]} 4... b6 {[%clk 0:04:49.3]} 5. c3 {[%clk 0:04:45.8]} 5...
Bb7 {[%clk 0:04:48.4]} 6. b3 {[%clk 0:04:42.9]} 6... c5 {[%clk 0:04:47.4]} 7.
Bb2 {[%clk 0:04:39.9]} 7... cxd4 {[%clk 0:04:46.2]} 8. cxd4 {[%clk 0:04:38.3]}
8... Bb4+ {[%clk 0:04:43.9]} 9. Bc3 {[%clk 0:04:33.3]} 9... Bxc3+ {[%clk
0:04:42.9]} 10. Nxc3 {[%clk 0:04:31.9]} 10... Qc7 {[%clk 0:04:41.8]} 11. Nb5
{[%clk 0:04:23.3]} 11... Qc6 {[%clk 0:04:37.3]} 12. Rc1 {[%clk 0:04:19.6]} 12...
Nc5 {[%clk 0:04:20.9]} 13. dxc5 {[%clk 0:04:16.4]} 13... bxc5 {[%clk 0:04:20.8]}
14. Nd6+ {[%clk 0:04:12.1]} 14... Kd7 {[%clk 0:04:16.7]} 15. Nxb7 {[%clk
0:04:10.1]} 15... Qxb7 {[%clk 0:04:14.2]} 16. Be2 {[%clk 0:03:58.3]} 16... Ne7
{[%clk 0:04:12.4]} 17. O-O {[%clk 0:03:56.6]} 17... Rhc8 {[%clk 0:04:10.2]} 18.
Qd3 {[%clk 0:03:43.8]} 18... g6 {[%clk 0:04:04.9]} 19. Qb5+ {[%clk 0:03:41.6]}
19... Qc6 {[%clk 0:03:58.2]} 20. Qxc6+ {[%clk 0:03:37.7]} 20... Rxc6 {[%clk
0:03:58.1]} 21. Bb5 {[%clk 0:03:33.3]} 21... Rc8 {[%clk 0:03:55]} 22. Bxc6+
{[%clk 0:03:31.6]} 22... Rxc6 {[%clk 0:03:54.9]} 23. Rc2 {[%clk 0:03:25.6]}
23... a5 {[%clk 0:03:54.2]} 24. Rfc1 {[%clk 0:03:23.7]} 24... d4 {[%clk
0:03:53.6]} 25. Rxc5 {[%clk 0:03:20.3]} 25... Rxc5 {[%clk 0:03:52.2]} 26. Rxc5
{[%clk 0:03:17.1]} 26... Nf5 {[%clk 0:03:52.1]} 27. Rc1 {[%clk 0:03:10.9]} 27...
d3 {[%clk 0:03:50.8]} 28. Rd1 {[%clk 0:03:09.5]} 28... Ne7 {[%clk 0:03:48.4]}
29. Rxd3+ {[%clk 0:03:08.2]} 29... Nd5 {[%clk 0:03:48.3]} 30. a3 {[%clk
0:02:59.1]} 30... h5 {[%clk 0:03:48.2]} 31. b4 {[%clk 0:02:57]} 31... axb4
{[%clk 0:03:48.1]} 32. axb4 {[%clk 0:02:56]} 32... Kc6 {[%clk 0:03:46.8]} 33.
Nd4+ {[%clk 0:02:50.2]} 33... Kb6 {[%clk 0:03:44.4]} 34. Rb3 {[%clk 0:02:43.2]}
34... g5 {[%clk 0:03:39.7]} 35. g3 {[%clk 0:02:41.5]} 35... g4 {[%clk 0:03:38]}
36. f4 {[%clk 0:02:38.2]} 36... gxf3 {[%clk 0:03:36.8]} 37. Nxf3 {[%clk
0:02:36.1]} 37... f5 {[%clk 0:03:30.8]} 38. exf6 {[%clk 0:02:33.8]} 38... Nxf6
{[%clk 0:03:30]} 39. Nd4 {[%clk 0:02:26.6]} 39... e5 {[%clk 0:03:26.3]} 40. b5
{[%clk 0:02:15.1]} 40... exd4 {[%clk 0:03:24.7]} 41. Kf2 {[%clk 0:02:03.4]}
41... Nd5 {[%clk 0:03:15.3]} 42. Ke2 {[%clk 0:01:53.3]} 42... Kc5 {[%clk
0:03:13.5]} 43. Kd3 {[%clk 0:01:49.4]} 43... Nb4+ {[%clk 0:03:09]} 44. Rxb4
{[%clk 0:01:47.7]} 44... Kxb4 {[%clk 0:03:08.9]} 45. b6 {[%clk 0:01:46.8]} 45...
Kc5 {[%clk 0:03:08.1]} 46. b7 {[%clk 0:01:45.9]} 46... h4 {[%clk 0:03:07.3]} 47.
b8=Q {[%clk 0:01:43.9]} 47... hxg3 {[%clk 0:03:07.2]} 48. hxg3 {[%clk
0:01:42.7]} 48... Kc6 {[%clk 0:03:05.1]} 49. Qd8 {[%clk 0:01:42.1]} 49... Kb7
{[%clk 0:02:58.1]} 50. Qxd4 {[%clk 0:01:40.5]} 50... Ka8 {[%clk 0:02:57.5]} 51.
g4 {[%clk 0:01:39.7]} 51... Kb8 {[%clk 0:02:56.7]} 52. g5 {[%clk 0:01:39]} 52...
Kb7 {[%clk 0:02:56.6]} 53. g6 {[%clk 0:01:38.3]} 53... Kb8 {[%clk 0:02:56.5]}
54. g7 {[%clk 0:01:37.6]} 54... Kb7 {[%clk 0:02:54.9]} 55. g8=Q {[%clk
0:01:36.1]} 55... Ka6 {[%clk 0:02:53.8]} 56. Qdd5 {[%clk 0:01:34.7]} 56... Ka7
{[%clk 0:02:52.9]} 57. Qgg5 {[%clk 0:01:33.7]} 57... Kb8 {[%clk 0:02:51.6]} 58.
Qg6 {[%clk 0:01:32]} 58... Kc8 {[%clk 0:02:50.5]} 59. Qdf7 {[%clk 0:01:30.8]}
59... Kd8 {[%clk 0:02:49.4]} 60. Qgg8# {[%clk 0:01:29.8]} 1-0

[Event "Live Chess"]
[Site "Chess.com"]
[Date "2024.06.01"]
[Round "-"]
[White "Keithdfg"]
[Black "defenderalist"]
[Result "1-0"]
[WhiteElo "1748"]
[BlackElo "1501"]
[TimeControl "300"]
[EndTime "9:31:22 PDT"]
[Termination "Keithdfg won by resignation"]

1. Nf3 {[%clk 0:04:55.9]} 1... c5 {[%clk 0:04:56.4]} 2. d3 {[%clk 0:04:55]} 2...
d5 {[%clk 0:04:55.4]} 3. Nbd2 {[%clk 0:04:53.2]} 3... Nc6 {[%clk 0:04:54.3]} 4.
e4 {[%clk 0:04:51.3]} 4... e6 {[%clk 0:04:50.2]} 5. Be2 {[%clk 0:04:50.4]} 5...
g6 {[%clk 0:04:44.9]} 6. O-O {[%clk 0:04:49.9]} 6... Bg7 {[%clk 0:04:44.2]} 7.
c3 {[%clk 0:04:49.5]} 7... Nge7 {[%clk 0:04:41.6]} 8. Qc2 {[%clk 0:04:48.1]}
8... O-O {[%clk 0:04:39.9]} 9. Re1 {[%clk 0:04:47.7]} 9... b6 {[%clk 0:04:33.6]}
10. a3 {[%clk 0:04:47]} 10... Bb7 {[%clk 0:04:30.9]} 11. Rb1 {[%clk 0:04:46.4]}
11... Qc7 {[%clk 0:04:26.4]} 12. b4 {[%clk 0:04:42.9]} 12... cxb4 {[%clk
0:04:23.8]} 13. axb4 {[%clk 0:04:41.7]} 13... Ne5 {[%clk 0:04:15.9]} 14. Nxe5
{[%clk 0:04:39.2]} 14... Qxe5 {[%clk 0:04:15.8]} 15. d4 {[%clk 0:04:36]} 15...
Qc7 {[%clk 0:04:10.5]} 16. e5 {[%clk 0:04:31.2]} 16... Rac8 {[%clk 0:04:04.5]}
17. Bb2 {[%clk 0:04:28.7]} 17... a5 {[%clk 0:03:55.6]} 18. bxa5 {[%clk
0:04:26.7]} 18... bxa5 {[%clk 0:03:54.3]} 19. Nb3 {[%clk 0:04:25.1]} 19... Nc6
{[%clk 0:03:45.4]} 20. Ba3 {[%clk 0:04:21]} 20... Rfd8 {[%clk 0:03:29.5]} 21.
Nc5 {[%clk 0:04:17.4]} 21... Ba8 {[%clk 0:03:23.8]} 22. Qa4 {[%clk 0:04:08.8]}
22... Rb8 {[%clk 0:03:16.9]} 23. Bb5 {[%clk 0:04:03.7]} 23... Bf8 {[%clk
0:03:08.6]} 24. Na6 {[%clk 0:04:01]} 24... Qb6 {[%clk 0:02:15.9]} 25. Bxf8
{[%clk 0:03:35.9]} 25... Rxf8 {[%clk 0:02:07.7]} 26. Nxb8 {[%clk 0:03:34.8]}
26... Rxb8 {[%clk 0:02:00.9]} 27. Bd3 {[%clk 0:03:30.7]} 27... Qc7 {[%clk
0:01:55.9]} 28. h4 {[%clk 0:03:24.9]} 28... Rc8 {[%clk 0:01:48.8]} 29. Ba6
{[%clk 0:03:19.7]} 29... Rf8 {[%clk 0:01:31.1]} 30. Qa3 {[%clk 0:03:13.4]} 30...
Ne7 {[%clk 0:01:17.4]} 31. Qd6 {[%clk 0:03:05.5]} 31... Qa7 {[%clk 0:01:09]} 32.
Qb6 {[%clk 0:03:03.8]} 32... Qd7 {[%clk 0:01:02.8]} 33. Qxa5 {[%clk 0:02:57.4]}
33... Nf5 {[%clk 0:00:58.5]} 34. g3 {[%clk 0:02:55.9]} 34... Qe7 {[%clk
0:00:38.7]} 35. Qb4 {[%clk 0:02:51.5]} 35... Qa7 {[%clk 0:00:33.4]} 36. Qb6
{[%clk 0:02:49.7]} 36... Qe7 {[%clk 0:00:30.5]} 37. Bd3 {[%clk 0:02:45.9]} 37...
Nxh4 {[%clk 0:00:29.1]} 38. gxh4 {[%clk 0:02:36]} 38... Qxh4 {[%clk 0:00:29]}
39. Re3 {[%clk 0:02:33.3]} 1-0

[Event "Live Chess"]
[Site "Chess.com"]
[Date "2024.06.01"]
[Round "-"]
[White "LaupMiths"]
[Black "Harry_Li"]
[Result "0-1"]
[WhiteElo "1873"]
[BlackElo "2174"]
[TimeControl "300"]
[EndTime "9:31:24 PDT"]
[Termination "Harry_Li won by resignation"]

1. Nf3 {[%clk 0:04:54.5]} 1... d5 {[%clk 0:04:59]} 2. g3 {[%clk 0:04:52.6]} 2...
c5 {[%clk 0:04:58]} 3. Bg2 {[%clk 0:04:50.7]} 3... Nc6 {[%clk 0:04:57.6]} 4. O-O
{[%clk 0:04:45.3]} 4... e5 {[%clk 0:04:56.4]} 5. d3 {[%clk 0:04:42.9]} 5... Nf6
{[%clk 0:04:55.4]} 6. Nbd2 {[%clk 0:04:40.6]} 6... Be7 {[%clk 0:04:53.4]} 7. e4
{[%clk 0:04:38.4]} 7... d4 {[%clk 0:04:51.8]} 8. Nc4 {[%clk 0:04:36.4]} 8... Qc7
{[%clk 0:04:34.8]} 9. a4 {[%clk 0:04:34.7]} 9... Be6 {[%clk 0:04:20.4]} 10. b3
{[%clk 0:04:32]} 10... a6 {[%clk 0:04:17.8]} 11. Bd2 {[%clk 0:04:27]} 11... O-O
{[%clk 0:04:14.5]} 12. Qe1 {[%clk 0:04:12.3]} 12... b5 {[%clk 0:04:11.6]} 13.
Na5 {[%clk 0:04:07.7]} 13... Nd7 {[%clk 0:03:50.4]} 14. Nxc6 {[%clk 0:03:59.6]}
14... Qxc6 {[%clk 0:03:50.3]} 15. Ng5 {[%clk 0:03:49.7]} 15... Bxg5 {[%clk
0:03:48.2]} 16. Bxg5 {[%clk 0:03:47.7]} 16... c4 {[%clk 0:03:45.7]} 17. bxc4
{[%clk 0:03:38.4]} 17... bxc4 {[%clk 0:03:44.3]} 18. f4 {[%clk 0:03:36.5]} 18...
f6 {[%clk 0:03:41.1]} 19. Bh4 {[%clk 0:03:33.9]} 19... Nc5 {[%clk 0:03:19.6]}
20. Qe2 {[%clk 0:03:10.8]} 20... Nxa4 {[%clk 0:03:12.7]} 21. fxe5 {[%clk
0:02:59.5]} 21... fxe5 {[%clk 0:03:11.3]} 22. Qh5 {[%clk 0:02:58]} 22... Rxf1+
{[%clk 0:02:49.5]} 23. Rxf1 {[%clk 0:02:57.9]} 23... Qd6 {[%clk 0:02:40.1]} 24.
g4 {[%clk 0:02:26.5]} 24... cxd3 {[%clk 0:02:37.4]} 25. cxd3 {[%clk 0:02:24.7]}
25... Nc5 {[%clk 0:02:36.7]} 26. Bg3 {[%clk 0:02:23.5]} 26... Nxd3 {[%clk
0:02:34.1]} 27. Rd1 {[%clk 0:02:22.2]} 27... Nf4 {[%clk 0:02:32.1]} 28. Bxf4
{[%clk 0:02:16.7]} 28... exf4 {[%clk 0:02:32]} 29. e5 {[%clk 0:02:15.8]} 29...
Qd8 {[%clk 0:02:01.3]} 30. Bxa8 {[%clk 0:02:05.8]} 30... Qxa8 {[%clk 0:02:01.2]}
31. Qg5 {[%clk 0:01:54.6]} 31... Qf3 {[%clk 0:01:45.6]} 32. Qd8+ {[%clk
0:01:42.3]} 32... Kf7 {[%clk 0:01:44.4]} 33. Qc7+ {[%clk 0:01:39.9]} 33... Kg6
{[%clk 0:01:39.8]} 34. Rf1 {[%clk 0:01:26.9]} 34... Qxg4+ {[%clk 0:01:37.7]} 35.
Kf2 {[%clk 0:01:25.3]} 35... Qh4+ {[%clk 0:01:29.6]} 36. Kg1 {[%clk 0:01:19.2]}
36... Bh3 {[%clk 0:00:39.9]} 37. Qd6+ {[%clk 0:01:14.7]} 37... Kf5 {[%clk
0:00:35.4]} 38. Qf8+ {[%clk 0:00:58.2]} 38... Kg6 {[%clk 0:00:26]} 39. Qd6+
{[%clk 0:00:56.3]} 39... Kh5 {[%clk 0:00:13.1]} 40. e6 {[%clk 0:00:30.6]} 40...
Qg4+ {[%clk 0:00:10.7]} 41. Kf2 {[%clk 0:00:28.7]} 41... Qg2+ {[%clk 0:00:10.1]}
42. Ke1 {[%clk 0:00:26.8]} 42... Qxf1+ {[%clk 0:00:09.9]} 43. Kd2 {[%clk
0:00:25.9]} 43... Qf2+ {[%clk 0:00:09.4]} 44. Kc1 {[%clk 0:00:23.8]} 44... Qe3+
{[%clk 0:00:08.8]} 45. Kb2 {[%clk 0:00:21.6]} 45... Bxe6 {[%clk 0:00:08.2]} 0-1

[Event "Live Chess"]
[Site "Chess.com"]
[Date "2024.06.01"]
[Round "-"]
[White "viktorskliarov"]
[Black "Pizzaman313"]
[Result "1-0"]
[WhiteElo "2638"]
[BlackElo "1193"]
[TimeControl "300"]
[EndTime "9:31:31 PDT"]
[Termination "viktorskliarov won by resignation"]

1. e4 {[%clk 0:04:56.6]} 1... e5 {[%clk 0:04:55.1]} 2. Nc3 {[%clk 0:04:55.5]}
2... Nf6 {[%clk 0:04:49.4]} 3. Bc4 {[%clk 0:04:54.1]} 3... Bc5 {[%clk
0:04:46.8]} 4. d3 {[%clk 0:04:52.9]} 4... d6 {[%clk 0:04:31.3]} 5. h3 {[%clk
0:04:50.1]} 5... O-O {[%clk 0:04:28.4]} 6. Nge2 {[%clk 0:04:47.2]} 6... c6
{[%clk 0:04:25.5]} 7. Ng3 {[%clk 0:04:39]} 7... d5 {[%clk 0:04:18.6]} 8. Bb3
{[%clk 0:04:26.9]} 8... dxe4 {[%clk 0:04:09.1]} 9. Ncxe4 {[%clk 0:04:22.3]} 9...
Nxe4 {[%clk 0:04:07.6]} 10. Nxe4 {[%clk 0:04:20.8]} 10... Bb6 {[%clk 0:03:57.3]}
11. Qh5 {[%clk 0:04:12.3]} 11... h6 {[%clk 0:03:30.5]} 12. Bxh6 {[%clk
0:04:05.8]} 12... Be6 {[%clk 0:03:03.7]} 13. Bxe6 {[%clk 0:03:47]} 13... fxe6
{[%clk 0:03:03.5]} 14. Qg6 {[%clk 0:03:40.6]} 14... Qe7 {[%clk 0:02:34]} 15. O-O
{[%clk 0:03:21.1]} 15... Nd7 {[%clk 0:02:15.5]} 16. Rae1 {[%clk 0:03:15.7]}
16... Nf6 {[%clk 0:02:12.5]} 17. Bg5 {[%clk 0:03:13.6]} 17... Bd8 {[%clk
0:02:07.4]} 18. Bxf6 {[%clk 0:03:10.7]} 18... Rxf6 {[%clk 0:02:04.5]} 19. Nxf6+
{[%clk 0:03:10]} 19... Qxf6 {[%clk 0:02:03.9]} 20. Qxf6 {[%clk 0:03:09.2]} 20...
Bxf6 {[%clk 0:02:03.6]} 21. Re4 {[%clk 0:03:06]} 21... Rd8 {[%clk 0:02:00]} 22.
Rfe1 {[%clk 0:03:04.3]} 22... b6 {[%clk 0:01:53.8]} 23. Kf1 {[%clk 0:03:03.2]}
23... Kf7 {[%clk 0:01:45.3]} 24. Ke2 {[%clk 0:03:02]} 24... Rd4 {[%clk
0:01:41.9]} 25. c3 {[%clk 0:03:01]} 25... Rxe4+ {[%clk 0:01:40.1]} 26. dxe4
{[%clk 0:03:00.9]} 26... Bg5 {[%clk 0:01:35.4]} 27. Rd1 {[%clk 0:03:00.8]} 27...
Ke7 {[%clk 0:01:33.5]} 28. g3 {[%clk 0:03:00.1]} 28... Bh6 {[%clk 0:01:29.4]}
29. Kf3 {[%clk 0:02:59.2]} 29... g5 {[%clk 0:01:01.3]} 30. Kg4 {[%clk
0:02:59.1]} 30... Kf6 {[%clk 0:00:59.7]} 31. Rd8 {[%clk 0:02:56.6]} 31... Ke7
{[%clk 0:00:57.7]} 32. Ra8 {[%clk 0:02:55.1]} 32... a5 {[%clk 0:00:57]} 33. Ra6
{[%clk 0:02:53.4]} 1-0

[Event "Live Chess"]
[Site "Chess.com"]
[Date "2024.06.01"]
[Round "-"]
[White "ClassyChameleon"]
[Black "Enhard"]
[Result "0-1"]
[WhiteElo "1521"]
[BlackElo "1462"]
[TimeControl "300"]
[EndTime "9:31:33 PDT"]
[Termination "Enhard won by checkmate"]

1. e4 {[%clk 0:04:58.6]} 1... c6 {[%clk 0:04:58.5]} 2. Nf3 {[%clk 0:04:58.3]}
2... d5 {[%clk 0:04:57.6]} 3. e5 {[%clk 0:04:58.1]} 3... Bf5 {[%clk 0:04:53.8]}
4. d4 {[%clk 0:04:57.3]} 4... e6 {[%clk 0:04:52.2]} 5. Bd3 {[%clk 0:04:56.4]}
5... Bxd3 {[%clk 0:04:51.1]} 6. Qxd3 {[%clk 0:04:56.3]} 6... h6 {[%clk
0:04:50.2]} 7. Nc3 {[%clk 0:04:55.6]} 7... Ne7 {[%clk 0:04:48.1]} 8. O-O {[%clk
0:04:55.1]} 8... Ng6 {[%clk 0:04:46.4]} 9. Bf4 {[%clk 0:04:54.2]} 9... Be7
{[%clk 0:04:45.6]} 10. Bg3 {[%clk 0:04:53.2]} 10... Nd7 {[%clk 0:04:42.9]} 11.
Na4 {[%clk 0:04:49.6]} 11... a6 {[%clk 0:04:39.7]} 12. Nc5 {[%clk 0:04:48.5]}
12... Nxc5 {[%clk 0:04:36.2]} 13. dxc5 {[%clk 0:04:47.6]} 13... Bxc5 {[%clk
0:04:34.9]} 14. c3 {[%clk 0:04:44.5]} 14... Be7 {[%clk 0:04:33.4]} 15. b4 {[%clk
0:04:43.4]} 15... O-O {[%clk 0:04:29.6]} 16. Rad1 {[%clk 0:04:40.5]} 16... Qc7
{[%clk 0:04:21.3]} 17. Rfe1 {[%clk 0:04:39.5]} 17... Rad8 {[%clk 0:04:19.6]} 18.
h3 {[%clk 0:04:34.4]} 18... Rfe8 {[%clk 0:04:00.2]} 19. Rd2 {[%clk 0:04:26.2]}
19... Rd7 {[%clk 0:03:56.1]} 20. Rde2 {[%clk 0:04:24.8]} 20... Qd8 {[%clk
0:03:53.3]} 21. a4 {[%clk 0:04:20.8]} 21... Bg5 {[%clk 0:03:42.1]} 22. h4 {[%clk
0:04:00.2]} 22... Bxh4 {[%clk 0:03:33.7]} 23. Bh2 {[%clk 0:03:35.3]} 23... Bg5
{[%clk 0:03:28.2]} 24. Nxg5 {[%clk 0:03:33.8]} 24... Qxg5 {[%clk 0:03:26.9]} 25.
a5 {[%clk 0:03:28.5]} 25... Red8 {[%clk 0:03:21.4]} 26. Qd4 {[%clk 0:03:06.1]}
26... Qh4 {[%clk 0:03:09.4]} 27. Qb6 {[%clk 0:02:53.2]} 27... Qc4 {[%clk
0:03:07]} 28. Re3 {[%clk 0:02:47]} 28... Qb5 {[%clk 0:03:00]} 29. Qd4 {[%clk
0:02:39.9]} 29... Ne7 {[%clk 0:02:54.4]} 30. Rh3 {[%clk 0:02:32.9]} 30... Nf5
{[%clk 0:02:50.9]} 31. Qf4 {[%clk 0:02:25.7]} 31... d4 {[%clk 0:02:46.3]} 32. g4
{[%clk 0:02:12.1]} 32... Ne7 {[%clk 0:02:34.9]} 33. g5 {[%clk 0:02:09.8]} 33...
Ng6 {[%clk 0:02:32.4]} 34. Qg3 {[%clk 0:01:57.6]} 34... dxc3 {[%clk 0:02:30]}
35. Qxc3 {[%clk 0:01:56.5]} 35... Rd3 {[%clk 0:02:27.7]} 36. Rxd3 {[%clk
0:01:55]} 36... Rxd3 {[%clk 0:02:26.3]} 37. Qb2 {[%clk 0:01:44.5]} 37... h5
{[%clk 0:02:24.3]} 38. Rb1 {[%clk 0:01:13.4]} 38... Qd5 {[%clk 0:02:22.1]} 39.
Qc2 {[%clk 0:01:00.1]} 39... Nh4 {[%clk 0:02:19.2]} 40. Bg3 {[%clk 0:00:48.7]}
40... Qg2# {[%clk 0:02:17.5]} 0-1

[Event "Live Chess"]
[Site "Chess.com"]
[Date "2024.06.01"]
[Round "-"]
[White "ALEX_UA_69"]
[Black "Bazzza132"]
[Result "1-0"]
[WhiteElo "1774"]
[BlackElo "1700"]
[TimeControl "300"]
[EndTime "9:31:35 PDT"]
[Termination "ALEX_UA_69 won by checkmate"]

1. e4 {[%clk 0:04:57.9]} 1... e5 {[%clk 0:04:58.8]} 2. Nf3 {[%clk 0:04:56.2]}
2... Nc6 {[%clk 0:04:57.3]} 3. Nc3 {[%clk 0:04:55.3]} 3... Nf6 {[%clk
0:04:55.6]} 4. d4 {[%clk 0:04:54.3]} 4... exd4 {[%clk 0:04:54.1]} 5. Nxd4 {[%clk
0:04:53.4]} 5... Bb4 {[%clk 0:04:51]} 6. Nxc6 {[%clk 0:04:52]} 6... bxc6 {[%clk
0:04:48.8]} 7. Bd3 {[%clk 0:04:50.8]} 7... O-O {[%clk 0:04:46.6]} 8. O-O {[%clk
0:04:49.6]} 8... Bxc3 {[%clk 0:04:40]} 9. bxc3 {[%clk 0:04:48.2]} 9... d5 {[%clk
0:04:39.5]} 10. Bg5 {[%clk 0:04:45.7]} 10... dxe4 {[%clk 0:04:36.2]} 11. Bxf6
{[%clk 0:04:42.6]} 11... Qxf6 {[%clk 0:04:30.8]} 12. Bxe4 {[%clk 0:04:40.7]}
12... Ba6 {[%clk 0:04:21.6]} 13. Re1 {[%clk 0:04:38]} 13... Rad8 {[%clk
0:04:18.6]} 14. Qf3 {[%clk 0:04:33.4]} 14... Qxf3 {[%clk 0:04:09]} 15. Bxf3
{[%clk 0:04:32.4]} 15... Rd6 {[%clk 0:04:00.8]} 16. Re7 {[%clk 0:04:28.3]} 16...
Rfd8 {[%clk 0:03:51.9]} 17. Rxc7 {[%clk 0:04:21.4]} 17... Bc4 {[%clk 0:03:34.2]}
18. h3 {[%clk 0:04:12.7]} 18... a6 {[%clk 0:03:31.5]} 19. Rxc6 {[%clk
0:04:10.7]} 19... Rd2 {[%clk 0:03:28.5]} 20. Be4 {[%clk 0:04:04.2]} 20... Bb5
{[%clk 0:03:22.4]} 21. Rc5 {[%clk 0:03:58.6]} 21... Re2 {[%clk 0:03:18.2]} 22.
c4 {[%clk 0:03:47.1]} 22... Ba4 {[%clk 0:03:01.9]} 23. Bd3 {[%clk 0:03:45.2]}
23... Re6 {[%clk 0:02:55.5]} 24. Rb1 {[%clk 0:03:36.5]} 24... Bc6 {[%clk
0:02:50.6]} 25. Rb6 {[%clk 0:03:33.2]} 25... Re1+ {[%clk 0:02:44.4]} 26. Kh2
{[%clk 0:03:30.1]} 26... Ba8 {[%clk 0:02:38.3]} 27. Rxa6 {[%clk 0:03:27]} 27...
g6 {[%clk 0:02:28.1]} 28. Rc7 {[%clk 0:03:22]} 28... Rb8 {[%clk 0:02:17.2]} 29.
Raa7 {[%clk 0:03:18.8]} 29... h5 {[%clk 0:02:08.3]} 30. Rxf7 {[%clk 0:03:16.3]}
30... Rbb1 {[%clk 0:02:01.4]} 31. h4 {[%clk 0:03:10.4]} 31... Rh1+ {[%clk
0:01:44.4]} 32. Kg3 {[%clk 0:03:08.1]} 32... Rbg1 {[%clk 0:01:43.3]} 33. f3
{[%clk 0:03:03.3]} 33... g5 {[%clk 0:01:33.9]} 34. Rg7+ {[%clk 0:02:57]} 34...
Kf8 {[%clk 0:01:32.2]} 35. Raf7+ {[%clk 0:02:54.5]} 35... Ke8 {[%clk 0:01:30.6]}
36. Re7+ {[%clk 0:02:53]} 36... Kf8 {[%clk 0:01:29.1]} 37. Rgf7+ {[%clk
0:02:52.1]} 37... Kg8 {[%clk 0:01:26.9]} 38. hxg5 {[%clk 0:02:45.8]} 38... h4+
{[%clk 0:01:20.2]} 39. Kf4 {[%clk 0:02:43.8]} 39... h3 {[%clk 0:01:16.9]} 40.
Rg7+ {[%clk 0:02:39.6]} 40... Kf8 {[%clk 0:01:15.8]} 41. Ref7+ {[%clk
0:02:36.1]} 41... Ke8 {[%clk 0:01:12.1]} 42. c5 {[%clk 0:02:32.6]} 42... hxg2
{[%clk 0:01:08.6]} 43. Bb5+ {[%clk 0:02:30.7]} 43... Kd8 {[%clk 0:01:06.1]} 44.
Rf8# {[%clk 0:02:29.6]} 1-0

[Event "Live Chess"]
[Site "Chess.com"]
[Date "2024.06.01"]
[Round "-"]
[White "f4nomore"]
[Black "Duke_of_Bebington"]
[Result "0-1"]
[WhiteElo "1196"]
[BlackElo "1611"]
[TimeControl "300"]
[EndTime "9:31:49 PDT"]
[Termination "Duke_of_Bebington won by resignation"]

1. b3 {[%clk 0:04:56.6]} 1... e5 {[%clk 0:04:55.9]} 2. Bb2 {[%clk 0:04:55.5]}
2... Nc6 {[%clk 0:04:55]} 3. e3 {[%clk 0:04:54.7]} 3... d5 {[%clk 0:04:53]} 4.
Ne2 {[%clk 0:04:53.2]} 4... Bd6 {[%clk 0:04:52.1]} 5. g3 {[%clk 0:04:52.3]} 5...
Nf6 {[%clk 0:04:51.1]} 6. Bg2 {[%clk 0:04:51.4]} 6... Be6 {[%clk 0:04:46.7]} 7.
O-O {[%clk 0:04:50.1]} 7... Qd7 {[%clk 0:04:46.3]} 8. f4 {[%clk 0:04:47.4]} 8...
Bh3 {[%clk 0:04:35]} 9. fxe5 {[%clk 0:04:37.3]} 9... Bxe5 {[%clk 0:04:28.4]} 10.
Bxe5 {[%clk 0:04:29.4]} 10... Nxe5 {[%clk 0:04:26.9]} 11. Nf4 {[%clk 0:04:22.5]}
11... Bxg2 {[%clk 0:04:24.6]} 12. Nxg2 {[%clk 0:04:21.1]} 12... O-O-O {[%clk
0:04:12.5]} 13. d4 {[%clk 0:04:19.8]} 13... Neg4 {[%clk 0:04:08.6]} 14. Qe2
{[%clk 0:04:14.4]} 14... Rhe8 {[%clk 0:04:05.8]} 15. Nd2 {[%clk 0:04:07.4]}
15... Qe6 {[%clk 0:03:49.2]} 16. Rxf6 {[%clk 0:03:34.2]} 16... Nxf6 {[%clk
0:03:42.4]} 17. c4 {[%clk 0:03:28.8]} 17... Kb8 {[%clk 0:03:20.2]} 18. cxd5
{[%clk 0:03:21.2]} 18... Rxd5 {[%clk 0:03:16.9]} 19. Nf3 {[%clk 0:03:07.1]}
19... Ng4 {[%clk 0:02:45.4]} 20. Rc1 {[%clk 0:03:01.5]} 20... Nxe3 {[%clk
0:02:37.8]} 21. Kh1 {[%clk 0:02:49]} 21... Nxg2 {[%clk 0:02:30.2]} 22. Qc4
{[%clk 0:02:39.9]} 22... Ne3 {[%clk 0:02:14.8]} 23. Qxc7+ {[%clk 0:02:33.6]}
23... Ka8 {[%clk 0:02:13.6]} 24. Ne5 {[%clk 0:02:18.3]} 24... Rdd8 {[%clk
0:01:48.1]} 25. Re1 {[%clk 0:01:51.3]} 25... Rc8 {[%clk 0:01:40.9]} 26. Qa5
{[%clk 0:01:43.1]} 26... Qd5+ {[%clk 0:01:26.9]} 27. Qxd5 {[%clk 0:01:35.6]}
27... Nxd5 {[%clk 0:01:26.7]} 28. Rf1 {[%clk 0:01:24.7]} 28... f6 {[%clk
0:01:23.1]} 29. Nf7 {[%clk 0:01:20.7]} 29... Ne3 {[%clk 0:01:20.7]} 30. Rf4
{[%clk 0:01:12.7]} 30... Rc1+ {[%clk 0:01:17.6]} 0-1

[Event "Live Chess"]
[Site "Chess.com"]
[Date "2024.06.01"]
[Round "-"]
[White "booktrunk"]
[Black "Ninifu"]
[Result "0-1"]
[WhiteElo "1364"]
[BlackElo "2068"]
[TimeControl "300"]
[EndTime "9:32:02 PDT"]
[Termination "Ninifu won by resignation"]

1. d4 {[%clk 0:04:55.6]} 1... Nf6 {[%clk 0:04:58.5]} 2. Nc3 {[%clk 0:04:48.8]}
2... d5 {[%clk 0:04:52.8]} 3. Bf4 {[%clk 0:04:48.7]} 3... c6 {[%clk 0:04:50.6]}
4. a3 {[%clk 0:04:42.2]} 4... g6 {[%clk 0:04:48.2]} 5. e3 {[%clk 0:04:40.7]}
5... Bg7 {[%clk 0:04:47.7]} 6. Nf3 {[%clk 0:04:37.6]} 6... O-O {[%clk
0:04:42.2]} 7. Bd3 {[%clk 0:04:32.6]} 7... Nbd7 {[%clk 0:04:39.8]} 8. O-O {[%clk
0:04:31.1]} 8... Ng4 {[%clk 0:04:35.5]} 9. Re1 {[%clk 0:04:27.9]} 9... e5 {[%clk
0:04:33.5]} 10. dxe5 {[%clk 0:04:26.2]} 10... Ngxe5 {[%clk 0:04:31.8]} 11. Nxe5
{[%clk 0:04:23.4]} 11... Nxe5 {[%clk 0:04:31]} 12. Be2 {[%clk 0:04:15.3]} 12...
Qe7 {[%clk 0:04:24.5]} 13. Rb1 {[%clk 0:04:12.8]} 13... Nc4 {[%clk 0:04:21.2]}
14. Bxc4 {[%clk 0:04:04.9]} 14... dxc4 {[%clk 0:04:19.4]} 15. Ne2 {[%clk
0:04:01.5]} 15... Bg4 {[%clk 0:04:15.7]} 16. Qc1 {[%clk 0:03:53.9]} 16... Rad8
{[%clk 0:04:08.4]} 17. Kh1 {[%clk 0:03:52.7]} 17... b5 {[%clk 0:03:54.6]} 18.
Ng1 {[%clk 0:03:49]} 18... Rd7 {[%clk 0:03:40.7]} 19. c3 {[%clk 0:03:47.3]}
19... Rfd8 {[%clk 0:03:38.8]} 20. f3 {[%clk 0:03:41.4]} 20... Be6 {[%clk
0:02:27.2]} 21. Qc2 {[%clk 0:03:32.5]} 21... f6 {[%clk 0:02:23.7]} 22. Rbd1
{[%clk 0:03:30.6]} 22... Bf7 {[%clk 0:02:22.8]} 23. Rxd7 {[%clk 0:03:28.9]}
23... Qxd7 {[%clk 0:02:20.7]} 24. e4 {[%clk 0:03:10.6]} 24... Qd3 {[%clk
0:02:17.4]} 25. Qxd3 {[%clk 0:03:04.9]} 25... Rxd3 {[%clk 0:02:15.9]} 26. Rb1
{[%clk 0:03:03.6]} 26... g5 {[%clk 0:02:04.5]} 27. Bg3 {[%clk 0:03:01.2]} 27...
Bg6 {[%clk 0:01:59.3]} 28. h3 {[%clk 0:02:57.5]} 28... f5 {[%clk 0:01:56.7]} 29.
exf5 {[%clk 0:02:46.8]} 29... Bxf5 {[%clk 0:01:55.4]} 30. Ne2 {[%clk 0:02:44.6]}
30... Rd2 {[%clk 0:01:52]} 31. Nc1 {[%clk 0:02:31.9]} 31... Bxb1 {[%clk
0:01:49.7]} 0-1